bitfinex-derivatives/quotes_SOLF0:USTF0_20241127
["timestamp","ask_amount","ask_price","bid_price","bid_amount"]
[1732680464678,2.06,232.61,232.45,2.06]
[1732680464984,2.06,232.61,232.57,6.85125033]
[1732680465284,2.06,232.61,232.5,2.06]
[1732680465486,2.1505,232.58,232.57,6.85125033]
[1732680467179,2.1505,232.58,232.51,2.1511]
[1732680467385,2.1507,232.56,232.51,2.1511]
[1732680467685,4.4621,232.62,232.49,2.1513]
[1732680467881,1.3056,232.61,232.54,6.85125033]
[1732680468078,2.1509,232.55,232.54,6.85125033]
[1732680470178,2.1509,232.55,232.5,2.1512]
[1732680470383,2.1509,232.55,232.54,6.85125033]
[1732680472590,2.1507,232.56,232.54,6.85125033]
[1732680472789,2.1507,232.56,232.55,6.85125033]
[1732680474782,1.3056,232.61,232.55,6.85125033]
[1732680474979,2.1506,232.58,232.57,6.85125033]
[1732680475384,2.1504,232.59,232.57,6.85125033]
[1732680476688,1.3056,232.61,232.57,6.85125033]
[1732680476886,2.1505,232.58,232.57,6.85125033]
[1732680483801,2.4021,232.62,232.55,6.85125033]
[1732680483995,2.1507,232.56,232.55,6.85125033]
[1732680484192,6.85125033,232.59,232.47,2.04]
[1732680484389,2.1508,232.56,232.49,6.85125033]
[1732680484593,2.04,232.58,232.49,6.85125033]
[1732680484594,6.85125033,232.57,232.49,6.85125033]
[1732680485594,2.151,232.53,232.51,6.85125033]
[1732680485795,2.04,232.58,232.51,6.85125033]
[1732680487295,2.1511,232.53,232.51,6.85125033]
[1732680487991,2.1511,232.52,232.51,6.85125033]
[1732680490797,8.89125033,232.58,232.46,2.04]
[1732680490989,2.1514,232.49,232.42,39.79996775]
[1732680491193,6.85125033,232.54,232.46,6.85125033]
[1732680491398,2.04,232.53,232.46,6.85125033]
[1732680491597,2.04,232.53,232.36,2.4813]
[1732680491598,6.85125033,232.52,232.36,2.4813]
[1732680491795,6.85125033,232.46,232.38,6.85125033]
[1732680492100,2.1518,232.44,232.41,6.85125033]
[1732680492297,2.06,232.46,232.41,6.85125033]
[1732680493199,2.06,232.47,232.34,2.06]
[1732680493394,8.91125033,232.47,232.41,6.85125033]
[1732680494300,6.85125033,232.46,232.28,2.06]
[1732680494598,2.06,232.47,232.42,6.85125033]
[1732680494796,2.1518,232.44,232.42,6.85125033]
[1732680495401,2.1518,232.44,232.38,2.1523]
[1732680495597,2.1518,232.44,232.43,6.85125033]
[1732680495803,2.06,232.47,232.43,6.85125033]
[1732680496002,1.3237,232.51,232.45,6.85125033]
[1732680496199,2.06,232.5,232.45,6.85125033]
[1732680496702,2.1515,232.47,232.45,6.85125033]
[1732680497097,2.06,232.5,232.43,6.85125033]
[1732680497300,2.1514,232.48,232.45,6.85125033]
[1732680497507,2.06,232.5,232.45,6.85125033]
[1732680498498,2.1515,232.47,232.45,6.85125033]
[1732680498699,1.3237,232.51,232.45,6.85125033]
[1732680498903,2.5668,232.52,232.47,6.85125033]
[1732680498904,4.6268,232.52,232.47,6.85125033]
[1732680499108,4.6268,232.52,232.49,6.85125033]
[1732680499301,4.6268,232.52,232.39,2.06]
[1732680499302,4.6268,232.52,232.45,6.85125033]
[1732680500408,2.1515,232.47,232.45,6.85125033]
[1732680501202,4.6268,232.52,232.45,6.85125033]
[1732680501406,4.6268,232.52,232.46,6.85125033]
[1732680502105,2.1515,232.48,232.46,6.85125033]
[1732680502499,4.6268,232.52,232.46,6.85125033]
[1732680502500,2.1515,232.47,232.46,6.85125033]
[1732680503813,2.06,232.51,232.46,6.85125033]
[1732680504019,6.85125033,232.51,232.33,2.12971574]
[1732680504222,6.85125033,232.51,232.41,6.85125033]
[1732680504517,6.85125033,232.49,232.4,6.85125033]
[1732680504815,2.04,232.48,232.42,6.85125033]
[1732680505019,2.1518,232.45,232.42,6.85125033]
[1732680505414,2.1516,232.47,232.42,6.85125033]
[1732680505615,2.04,232.47,232.44,6.85125033]
[1732680506317,2.04,232.47,232.4,2.1522]
[1732680506521,2.04,232.47,232.43,6.85125033]
[1732680506716,2.04,232.47,232.4,2.1522]
[1732680506717,2.1517,232.45,232.4,2.1522]
[1732680506921,2.1517,232.45,232.43,6.85125033]
[1732680507116,2.04,232.47,232.43,6.85125033]
[1732680507321,4.1916,232.47,232.43,6.85125033]
[1732680507521,2.04,232.47,232.43,6.85125033]
[1732680507724,2.1517,232.46,232.43,6.85125033]
[1732680508023,2.04,232.47,232.43,6.85125033]
[1732680508424,4.1915,232.47,232.43,6.85125033]
[1732680508624,4.1915,232.47,232.45,6.85125033]
[1732680510021,2.04,232.47,232.45,6.85125033]
[1732680510218,4.6068,232.52,232.45,6.85125033]
[1732680510425,4.6068,232.52,232.48,6.85125033]
[1732680510426,2.04,232.52,232.48,6.85125033]
[1732680510624,26.00109404,232.57,232.48,6.85125033]
[1732680510830,2.04,232.56,232.5,6.85125033]
[1732680511321,3.9218,232.61,232.52,6.85125033]
[1732680511322,2.1509,232.54,232.52,6.85125033]
[1732680511517,2.04,232.57,232.52,6.85125033]
[1732680512221,3.9218,232.61,232.52,6.85125033]
[1732680512427,2.04,232.6,232.54,6.85125033]
[1732680512928,2.1507,232.56,232.54,6.85125033]
[1732680514024,2.04,232.59,232.43,3.273]
[1732680514229,2.04,232.59,232.51,6.85125033]
[1732680514230,2.1509,232.54,232.51,6.85125033]
[1732680520143,2.04,232.59,232.51,6.85125033]
[1732680520844,2.1508,232.56,232.51,6.85125033]
[1732680521036,2.04,232.59,232.51,6.85125033]
[1732680521440,2.1508,232.55,232.51,6.85125033]
[1732680522043,2.1507,232.56,232.51,6.85125033]
[1732680523046,2.1507,232.56,232.51,9.00235033]
[1732680523237,2.1507,232.56,232.51,6.85125033]
[1732680523440,2.1507,232.56,232.52,6.85125033]
[1732680523841,2.1508,232.55,232.52,6.85125033]
[1732680524340,6.85125033,232.58,232.5,6.85125033]
[1732680525445,2.1509,232.54,232.5,6.85125033]
[1732680525647,2.1509,232.54,232.52,6.85125033]
[1732680529948,2.1509,232.54,232.49,2.1513]
[1732680530147,2.1509,232.54,232.51,6.85125033]
[1732680532756,2.1508,232.55,232.51,6.85125033]
[1732680534156,2.04,232.59,232.51,6.85125033]
[1732680534351,2.1507,232.56,232.53,6.85125033]
[1732680534552,2.04,232.59,232.53,6.85125033]
[1732680534751,2.1506,232.58,232.53,6.85125033]
[1732680534952,2.04,232.59,232.53,9.00225033]
[1732680535254,6.85125033,232.62,232.55,6.85125033]
[1732680536145,6.85125033,232.6,232.49,2.04]
[1732680536353,6.85125033,232.58,232.5,6.85125033]
[1732680536551,2.04,232.58,232.44,2.04]
[1732680536746,6.85125033,232.54,232.46,6.85125033]
[1732680539355,6.85125033,232.54,232.48,6.85125033]
[1732680539557,6.85125033,232.56,232.48,6.85125033]
[1732680540548,2.1513,232.49,232.43,1.233]
[1732680540855,6.85125033,232.5,232.41,6.85125033]
[1732680541452,2.1518,232.45,232.41,6.85125033]
[1732680541757,2.04,232.48,232.41,6.85125033]
[1732680541960,2.1517,232.45,232.41,6.85125033]
[1732680543357,2.1517,232.45,232.4,2.1522]
[1732680543358,2.1517,232.45,232.43,6.85125033]
[1732680544657,8.89125033,232.48,232.38,2.1523]
[1732680544962,8.89125033,232.48,232.41,6.85125033]
[1732680545159,2.1519,232.43,232.41,6.85125033]
[1732680545561,6.85125033,232.46,232.31,3.7516]
[1732680545753,6.85125033,232.46,232.37,6.85125033]
[1732680546162,2.1519,232.44,232.37,6.85125033]
[1732680546462,2.04,232.43,232.37,6.85125033]
[1732680546961,2.1522,232.41,232.37,6.85125033]
[1732680547357,2.1522,232.41,232.36,2.1525]
[1732680547358,2.04,232.43,232.36,2.1525]
[1732680547562,2.04,232.43,232.38,6.85125033]
[1732680548560,2.04,232.43,232.4,6.85125033]
[1732680548858,2.152,232.42,232.4,6.85125033]
[1732680549362,1.3056,232.47,232.4,6.85125033]
[1732680549566,2.04,232.47,232.44,6.85125033]
[1732680550157,2.04,232.47,232.45,6.85125033]
[1732680555762,6.85125033,232.53,232.45,9.00295033]
[1732680555969,2.04,232.52,232.45,6.85125033]
[1732680556167,6.85125033,232.51,232.38,2.04]
[1732680556369,2.1514,232.49,232.43,6.85125033]
[1732680556569,6.85125033,232.51,232.43,6.85125033]
[1732680557063,6.85125033,232.51,232.36,2.1525]
[1732680557273,6.85125033,232.44,232.37,1.0766279]
[1732680557463,8.89125033,232.44,232.36,6.85125033]
[1732680557668,2.1522,232.4,232.36,6.85125033]
[1732680561676,2.1522,232.4,232.31,2.5304]
[1732680561975,2.1522,232.4,232.35,6.85125033]
[1732680562473,2.04,232.44,232.39,6.85125033]
[1732680563079,2.1519,232.43,232.39,6.85125033]
[1732680564372,2.04,232.44,232.41,6.85125033]
[1732680565176,4.1918,232.44,232.41,6.85125033]
[1732680565671,2.04,232.44,232.31,2.5304]
[1732680565873,2.04,232.44,232.32,1.07685978]
[1732680566178,8.89125033,232.44,232.36,6.85125033]
[1732680566383,2.152,232.42,232.36,6.85125033]
[1732680566679,8.89125033,232.44,232.36,6.85125033]
[1732680566878,2.04,232.44,232.36,6.85125033]
[1732680567082,8.89125033,232.44,232.36,6.85125033]
[1732680567379,2.1522,232.4,232.36,6.85125033]
[1732680567580,8.89125033,232.44,232.36,6.85125033]
[1732680567581,2.04,232.44,232.38,6.85125033]
[1732680567784,2.152,232.42,232.4,6.85125033]
[1732680567974,3.7522,232.47,232.4,6.85125033]
[1732680568178,2.04,232.46,232.43,6.85125033]
[1732680569277,2.1517,232.45,232.43,6.85125033]
[1732680570378,4.505,232.47,232.41,6.85125033]
[1732680570379,2.1518,232.44,232.41,6.85125033]
[1732680571972,4.505,232.47,232.41,6.85125033]
[1732680572178,2.1521,232.42,232.39,6.85125033]
[1732680575703,6.85125033,232.46,232.38,6.85125033]
[1732680576312,6.85125033,232.44,232.33,2.1528]
[1732680576504,6.85125033,232.44,232.37,6.85125033]
[1732680576807,17.2115,232.56,232.39,6.85125033]
[1732680577009,6.85125033,232.48,232.39,6.85125033]
[1732680577214,2.04,232.47,232.39,6.85125033]
[1732680578092,8.89125033,232.47,232.39,6.85125033]
[1732680578904,2.152,232.42,232.39,6.85125033]
[1732680581404,2.1523,232.39,232.34,2.1527]
[1732680581619,2.1523,232.39,232.37,6.85125033]
[1732680582203,2.1522,232.4,232.37,6.85125033]
[1732680582404,2.1522,232.4,232.32,4.6415]
[1732680582405,2.04,232.42,232.39,6.85125033]
[1732680583784,2.1522,232.41,232.39,6.85125033]
[1732680584187,2.1522,232.4,232.33,2.1527]
[1732680584398,2.1522,232.4,232.37,6.85125033]
[1732680590486,2.1522,232.4,232.39,6.85125033]
[1732680591890,2.1526,232.36,232.32,2.6015]
[1732680592092,2.1526,232.36,232.33,1.07691379]
[1732680592294,2.1526,232.36,232.32,6.85125033]
[1732680592489,2.1526,232.36,232.33,1.07706024]
[1732680592696,2.1526,232.36,232.32,6.85125033]
[1732680592889,2.1526,232.36,232.33,1.0770574]
[1732680593090,2.1526,232.36,232.32,6.85125033]
[1732680593284,2.1526,232.36,232.33,1.07706544]
[1732680593588,2.1526,232.36,232.32,9.00415033]
[1732680593993,2.1526,232.36,232.34,6.85125033]
[1732680595293,2.1526,232.35,232.34,6.85125033]
[1732680599692,2.1525,232.36,232.34,6.85125033]
[1732680599892,2.1525,232.36,232.35,6.85125033]
[1732680601387,2.1525,232.37,232.35,6.85125033]
[1732680601588,1.2799,232.43,232.35,6.85125033]
[1732680601794,2.04,232.45,232.37,6.85125033]
[1732680603303,2.1522,232.4,232.37,6.85125033]
[1732680605991,6.85125033,232.43,232.31,1.2609]
[1732680606304,6.85125033,232.39,232.32,7.92823444]
[1732680606603,2.04,232.38,232.32,6.85125033]
[1732680606801,2.1527,232.35,232.32,6.85125033]
[1732680609999,2.1527,232.35,232.33,1.07710917]
[1732680610189,2.1527,232.35,232.32,6.85125033]
[1732680610389,2.1527,232.35,232.33,1.07710767]
[1732680610591,2.1527,232.35,232.32,6.85125033]
[1732680610799,2.1527,232.35,232.33,1.0771112]
[1732680611001,2.1527,232.35,232.32,6.85125033]
[1732680611202,2.1527,232.35,232.33,1.07710767]
[1732680611497,2.1527,232.35,232.32,6.85125033]
[1732680611701,1.2547,232.44,232.34,6.85125033]
[1732680611900,2.04,232.43,232.37,6.85125033]
[1732680612199,2.1521,232.42,232.37,6.85125033]
[1732680612400,8.89125033,232.43,232.37,6.85125033]
[1732680613303,2.1523,232.39,232.37,6.85125033]
[1732680614302,8.89125033,232.43,232.37,6.85125033]
[1732680614702,2.04,232.43,232.37,6.85125033]
[1732680615296,2.1523,232.39,232.37,6.85125033]
[1732680618604,2.04,232.43,232.37,6.85125033]
[1732680618804,2.1524,232.38,232.37,6.85125033]
[1732680618999,2.04,232.43,232.37,6.85125033]
[1732680619306,2.1523,232.39,232.37,6.85125033]
[1732680621507,2.1524,232.38,232.37,6.85125033]
[1732680626113,2.04,232.43,232.35,6.85125033]
[1732680626420,2.04,232.43,232.31,1.2165]
[1732680626421,6.85125033,232.41,232.3,2.04]
[1732680626614,6.85125033,232.41,232.32,6.85125033]
[1732680626821,2.1525,232.36,232.34,6.85125033]
[1732680627719,2.04,232.43,232.34,6.85125033]
[1732680627916,8.89125033,232.43,232.34,6.85125033]
[1732680629021,6.85125033,232.36,232.25,27.47110525]
[1732680629220,6.85125033,232.31,232.23,6.85125033]
[1732680629421,2.04,232.3,232.18,1.2885]
[1732680629619,2.04,232.3,232.21,6.85125033]
[1732680629620,6.85125033,232.29,232.21,6.85125033]
[1732680630015,2.1535,232.26,232.18,1.2885]
[1732680630217,6.85125033,232.27,232.19,6.85125033]
[1732680630421,6.85125033,232.23,232.13,27.48218156]
[1732680630616,2.1539,232.22,232.15,6.85125033]
[1732680630816,8.89125033,232.23,232.15,6.85125033]
[1732680631817,2.1539,232.21,232.17,6.85125033]
[1732680632019,2.04,232.23,232.19,6.85125033]
[1732680632815,2.04,232.25,232.21,6.85125033]
[1732680634330,2.1532,232.29,232.25,6.85125033]
[1732680635320,2.1531,232.3,232.25,6.85125033]
[1732680635717,8.89125033,232.33,232.25,6.85125033]
[1732680635919,8.89125033,232.33,232.15,2.04]
[1732680635920,6.85125033,232.29,232.22,6.85125033]
[1732680636138,2.04,232.28,232.22,6.85125033]
[1732680636368,6.85125033,232.25,232.17,6.85125033]
[1732680636624,6.85125033,232.21,232.13,6.85125033]
[1732680636833,8.89125033,232.21,232.13,6.85125033]
[1732680637023,2.1543,232.17,232.12,6.85125033]
[1732680637321,8.89125033,232.21,232.14,6.85125033]
[1732680637719,2.1542,232.19,232.14,6.85125033]
[1732680638035,2.04,232.21,232.16,6.85125033]
[1732680638348,2.04,232.21,232.18,6.85125033]
[1732680639217,2.04,232.21,232.16,6.85125033]
[1732680640128,2.154,232.2,232.16,6.85125033]
[1732680640518,2.04,232.21,232.16,6.85125033]
[1732680640720,2.04,232.21,232.13,2.04]
[1732680640721,2.04,232.21,232.18,6.85125033]
[1732680640928,2.04,232.25,232.18,6.85125033]
[1732680641524,2.04,232.25,232.2,6.85125033]
[1732680642227,2.1537,232.24,232.2,6.85125033]
[1732680644027,2.04,232.25,232.2,6.85125033]
[1732680644927,2.1533,232.28,232.22,6.85125033]
[1732680645325,2.04,232.29,232.23,2.1537]
[1732680645535,2.04,232.29,232.24,6.85125033]
[1732680646233,2.04,232.29,232.24,9.00485033]
[1732680646735,2.1531,232.3,232.24,9.00485033]
[1732680647430,2.153,232.31,232.26,6.85125033]
[1732680649034,8.89125033,232.34,232.28,6.85125033]
[1732680649035,2.1529,232.33,232.28,6.85125033]
[1732680650732,2.1529,232.32,232.23,2.04]
[1732680650925,2.1529,232.32,232.27,6.85125033]
[1732680653831,8.89125033,232.34,232.25,6.85125033]
[1732680654428,2.1532,232.3,232.24,2.1536]
[1732680654734,8.89125033,232.34,232.25,6.85125033]
[1732680654936,6.85125033,232.32,232.23,2.1537]
[1732680655138,2.1532,232.3,232.23,9.00495033]
[1732680655339,6.85125033,232.28,232.19,3.8465]
[1732680655641,8.89125033,232.28,232.2,6.85125033]
[1732680655836,2.1536,232.25,232.2,6.85125033]
[1732680656067,8.89125033,232.28,232.2,6.85125033]
[1732680656538,8.89125033,232.28,232.2,9.00525033]
[1732680657334,2.1536,232.25,232.22,6.85125033]
[1732680658034,2.1536,232.25,232.21,2.1539]
[1732680658338,2.1536,232.25,232.22,6.85125033]
[1732680660039,2.04,232.28,232.22,6.85125033]
[1732680660291,2.1535,232.26,232.22,6.85125033]
[1732680660430,2.04,232.28,232.22,6.85125033]
[1732680660634,6.85125033,232.34,232.26,6.85125033]
[1732680660832,6.85125033,232.32,232.22,6.85125033]
[1732680661032,2.04,232.31,232.22,9.00495033]
[1732680661433,6.85125033,232.3,232.22,6.85125033]
[1732680661837,2.1536,232.25,232.22,6.85125033]
[1732680662236,6.85125033,232.3,232.22,6.85125033]
[1732680662839,2.1537,232.24,232.2,9.00525033]
[1732680663043,6.85125033,232.26,232.18,6.85125033]
[1732680663243,8.89125033,232.26,232.18,6.85125033]
[1732680663442,2.1538,232.23,232.18,6.85125033]
[1732680664241,6.85125033,232.28,232.2,6.85125033]
[1732680664456,2.04,232.27,232.2,6.85125033]
[1732680664742,2.1535,232.26,232.2,9.00515033]
[1732680664941,2.04,232.27,232.2,6.85125033]
[1732680665341,4.1935,232.27,232.2,9.00515033]
[1732680665543,4.1935,232.27,232.22,6.85125033]
[1732680666142,2.04,232.27,232.22,6.85125033]
[1732680666344,2.1535,232.26,232.22,6.85125033]
[1732680666735,2.1535,232.26,232.2,9.00525033]
[1732680668339,6.85125033,232.25,232.17,8.89125033]
[1732680668546,6.85125033,232.25,232.17,6.85125033]
[1732680669250,2.1538,232.23,232.17,9.00555033]
[1732680669542,2.1538,232.23,232.17,6.85125033]
[1732680669845,2.1538,232.23,232.18,2.1542]
[1732680671141,2.1538,232.22,232.18,2.1542]
[1732680672737,2.1538,232.22,232.19,6.85125033]
[1732680673645,2.1538,232.23,232.19,9.00535033]
[1732680674437,2.1538,232.23,232.19,6.85125033]
[1732680674880,2.1538,232.22,232.19,6.85125033]
[1732680675049,2.1538,232.22,232.17,9.00545033]
[1732680675248,6.85125033,232.26,232.14,2.04]
[1732680675442,6.85125033,232.24,232.16,6.85125033]
[1732680675947,2.1539,232.22,232.16,9.00565033]
[1732680676147,6.85125033,232.24,232.16,9.00565033]
[1732680676546,6.85125033,232.26,232.16,9.00565033]
[1732680676749,2.154,232.21,232.14,2.04]
[1732680677046,2.154,232.21,232.17,6.85125033]
[1732680677245,2.154,232.21,232.11,1.2738]
[1732680677246,2.1543,232.17,232.11,1.2738]
[1732680677446,8.89125033,232.22,232.12,7.92905715]
[1732680677651,8.89125033,232.22,232.12,6.85125033]
[1732680678251,6.85125033,232.2,232.12,6.85125033]
[1732680678855,6.85125033,232.16,232.08,7.06841033]
[1732680679346,8.89125033,232.16,232.08,7.06841033]
[1732680680744,2.1547,232.13,232.08,7.06841033]
[1732680680948,8.89125033,232.16,232.08,0.21716]
[1732680680949,6.85125033,232.1,232.08,0.21716]
[1732680681359,2.155,232.09,232.08,0.21716]
[1732680684351,2.04,232.11,232.08,0.21716]
[1732680684545,8.89125033,232.15,232.08,0.21716]
[1732680685046,2.1546,232.14,232.08,2.37226]
[1732680685649,6.85125033,232.13,232.08,2.37226]
[1732680686746,3.8051,232.21,232.08,0.21716]
[1732680686950,2.1544,232.16,232.1,2.1549]
[1732680687656,9.00575033,232.15,232.08,9.22341033]
[1732680687852,9.00575033,232.15,232.08,7.06841033]
[1732680688251,9.00575033,232.15,232.08,6.85125033]
[1732680688457,6.85125033,232.15,232.08,6.85125033]
[1732680688754,8.89125033,232.15,232.08,6.85125033]
[1732680689752,2.1546,232.14,232.08,9.00635033]
[1732680690166,8.89125033,232.15,232.08,2.1551]
[1732680690660,6.85125033,232.15,232.08,2.1551]
[1732680690957,2.1547,232.13,232.08,2.1551]
[1732680691954,9.00595033,232.13,232.08,2.1551]
[1732680692952,9.00595033,232.13,232.05,2.04]
[1732680693155,6.85125033,232.15,232.09,2.155]
[1732680693350,2.1546,232.14,232.09,2.155]
[1732680693957,2.1547,232.13,232.09,2.155]
[1732680694853,2.1546,232.14,232.09,2.155]
[1732680698363,6.85125033,232.13,232.09,2.155]
[1732680702122,2.1553,232.07,232.02,2.1557]
[1732680702266,6.85125033,232.08,231.99,6.85125033]
[1732680702862,2.1554,232.06,232.02,2.1557]
[1732680703263,6.85125033,232.08,232.02,2.1557]
[1732680703465,6.85125033,232.08,232.03,2.1556]
[1732680704070,2.1552,232.07,232.01,2.1557]
[1732680704370,2.1552,232.07,231.98,0.34009]
[1732680704565,2.1552,232.07,232.0,6.85125033]
[1732680706275,2.1552,232.07,232.03,2.1556]
[1732680706763,2.04,232.11,232.05,2.1554]
[1732680706969,8.89125033,232.11,232.02,6.85125033]
[1732680707165,6.85125033,232.09,232.02,6.85125033]
[1732680707369,6.85125033,232.09,231.98,0.34009]
[1732680707569,6.85125033,232.09,231.97,4.20644704]
[1732680707570,6.85125033,232.09,232.01,6.85125033]
[1732680708066,2.1552,232.08,232.03,2.1555]
[1732680709074,2.1552,232.08,232.04,2.1555]
[1732680709272,2.155,232.09,232.03,6.85125033]
[1732680710372,2.155,232.09,232.05,2.1554]
[1732680710965,1.3135,232.12,232.05,6.85125033]
[1732680711170,3.4683,232.12,232.03,6.85125033]
[1732680711374,1.3135,232.12,232.03,6.85125033]
[1732680712372,2.1549,232.11,232.06,2.1553]
[1732680712764,9.00615033,232.11,232.06,2.1553]
[1732680713270,2.155,232.09,232.04,2.1555]
[1732680713774,2.155,232.09,232.03,6.85125033]
[1732680714865,9.00615033,232.11,232.06,2.1553]
[1732680715066,1.3135,232.12,232.02,2.04]
[1732680715271,1.3135,232.12,232.05,6.85125033]
[1732680715470,2.1549,232.11,232.06,2.1553]
[1732680715867,2.1549,232.11,232.05,6.85125033]
[1732680716767,2.1548,232.12,232.07,2.1552]
[1732680718578,2.1549,232.11,232.07,2.1552]
[1732680719878,9.00595033,232.13,232.08,2.155]
[1732680720487,2.1547,232.13,232.09,2.155]
[1732680720786,1.3159,232.19,232.09,6.85125033]
[1732680720979,6.85125033,232.17,232.1,2.1549]
[1732680721284,2.1544,232.16,232.08,6.85125033]
[1732680721481,2.1544,232.16,232.09,1.07814671]
[1732680721687,2.1544,232.16,232.08,6.85125033]
[1732680721909,2.1544,232.16,232.09,1.0781351]
[1732680722186,9.00555033,232.17,232.1,1.0781428]
[1732680722390,9.00555033,232.17,232.11,1.07811393]
[1732680722690,9.00555033,232.17,232.08,6.85125033]
[1732680722880,1.3159,232.19,232.1,6.85125033]
[1732680723087,8.16715033,232.19,232.1,6.85125033]
[1732680723281,12.91,232.34,232.12,6.85125033]
[1732680723485,2.1539,232.21,232.14,6.85125033]
[1732680724088,2.1539,232.21,232.15,1.0779005]
[1732680724291,2.154,232.2,232.14,9.00575033]
[1732680724491,6.85125033,232.2,232.12,8.89125033]
[1732680724793,6.85125033,232.2,232.12,2.04]
[1732680725690,2.1543,232.18,232.12,4.1948]
[1732680725887,6.85125033,232.22,232.13,6.85125033]
[1732680726393,6.85125033,232.2,232.13,6.85125033]
[1732680726994,2.154,232.2,232.14,2.1545]
[1732680727286,2.154,232.2,232.13,6.85125033]
[1732680727491,2.154,232.2,232.14,1.07790078]
[1732680727694,2.154,232.2,232.13,6.85125033]
[1732680727991,2.154,232.2,232.14,1.07788912]
[1732680728214,6.85125033,232.21,232.13,9.00585033]
[1732680728215,2.1541,232.19,232.13,9.00585033]
[1732680728592,2.1541,232.19,232.13,6.85125033]
[1732680729086,2.1544,232.17,232.12,4.1947]
[1732680729289,6.85125033,232.19,232.12,2.04]
[1732680729585,6.85125033,232.21,232.12,2.04]
[1732680729989,2.1541,232.19,232.13,2.1546]
[1732680730297,6.85125033,232.21,232.13,6.85125033]
[1732680730883,2.154,232.2,232.14,2.1546]
[1732680731093,2.04,232.23,232.17,6.85125033]
[1732680731286,8.89125033,232.23,232.15,6.85125033]
[1732680731487,2.154,232.2,232.13,9.00585033]
[1732680731686,2.154,232.2,232.13,6.85125033]
[1732680732688,2.154,232.2,232.14,2.1545]
[1732680733492,6.85125033,232.21,232.14,2.1545]
[1732680733690,2.1541,232.19,232.14,2.1545]
[1732680733994,2.1541,232.19,232.13,6.85125033]
[1732680733995,6.85125033,232.21,232.13,6.85125033]
[1732680734196,6.85125033,232.19,232.1,6.85125033]
[1732680734587,6.85125033,232.19,232.12,6.85125033]
[1732680735192,2.04,232.23,232.12,9.00595033]
[1732680735387,6.85125033,232.2,232.12,6.85125033]
[1732680735595,6.85125033,232.22,232.12,6.85125033]
[1732680735790,2.1542,232.19,232.14,9.00585033]
[1732680736195,6.85125033,232.22,232.14,9.00585033]
[1732680736395,2.154,232.2,232.14,9.00585033]
[1732680737299,2.154,232.2,232.14,2.1546]
[1732680737597,2.1541,232.19,232.14,2.1546]
[1732680738508,6.85125033,232.2,232.09,4.1973281]
[1732680738509,6.85125033,232.3,232.09,2.1573281]
[1732680738757,2.552,232.32,232.13,1.3088]
[1732680738902,6.85125033,232.21,232.14,3.11779813]
[1732680739133,6.85125033,232.21,232.13,1.3088]
[1732680739134,6.85125033,232.21,232.13,2.04]
[1732680739339,2.1543,232.18,232.12,6.85125033]
[1732680739504,6.85125033,232.19,232.09,2.04]
[1732680739701,6.85125033,232.17,232.09,6.85125033]
[1732680739895,6.85125033,232.17,232.05,3.4641]
[1732680740194,6.85125033,232.13,232.05,6.85125033]
[1732680740601,2.1548,232.12,232.05,6.85125033]
[1732680740900,6.85125033,232.13,232.04,29.78830227]
[1732680741103,2.1548,232.12,232.04,29.78830227]
[1732680741299,9.00605033,232.12,232.05,6.85125033]
[1732680741795,2.1548,232.12,232.05,6.85125033]
[1732680742999,2.1546,232.14,232.07,6.85125033]
[1732680744001,8.89125033,232.16,232.07,6.85125033]
[1732680744200,6.85125033,232.14,232.05,6.85125033]
[1732680745106,6.85125033,232.14,232.07,6.85125033]
[1732680745400,2.04,232.16,232.07,6.85125033]
[1732680745605,6.85125033,232.14,232.07,6.85125033]
[1732680746106,6.85125033,232.14,232.05,6.85125033]
[1732680746306,6.85125033,232.12,232.03,1.3118]
[1732680746602,6.85125033,232.08,231.99,8.93125033]
[1732680746805,2.1555,232.05,231.99,8.93125033]
[1732680747064,6.85125033,232.08,231.99,8.93125033]
[1732680747203,6.85125033,232.06,231.99,8.93125033]
[1732680747399,2.1555,232.04,231.99,8.93125033]
[1732680747808,6.85125033,232.08,231.99,8.93125033]
[1732680748208,2.1556,232.03,231.99,8.93125033]
[1732680749897,6.85125033,232.06,231.95,0.3769]